{"text_format":"3","workbook":"xlsx","n_sheets":1,"sheets":["汇总2"],"not_rendered":{"defined_names":1},"read":"whole","date_system":"1900"}

{"sheet":"汇总2","index":0,"n_rows":64,"n_cols":16,"rows_kept":64,"merged":[[0,0,0,1],[1,0,1,15],[21,1,22,1],[23,1,26,1],[27,1,28,1],[29,1,32,1],[29,2,32,2],[29,3,32,3],[63,0,63,8]]}
["附件3"]
["铜仁市2021年产业重点人才引进职位表（国有企业）"]
["序号","引才单位","联系人","联系电话","岗位\n类型","需求\n岗位","专业","职称","学历学位要求","数量","履历及其他\n相关要求","相关待遇","引进方式","是否需面向往届毕业生引才","备注","工作\n地区"]
[{"$f":"SUBTOTAL(103,$F$4:F4)+1-1","v":1},"贵州省梵净山投资控股集团有限公司 ","杨斯",15186003216,"专业技术","管理会计岗","会计学、财务管理、审计学","中级职称","本科及以上",2,"具有3年及以上财务工作经验；具有中级会计师及以上职称   ","按照薪酬管理办法执行","全职","是","具有全面的财务专业知识、财务处理及财务管理经验，精通国家财税法律规范，具备优秀的职业判断能力；能够熟练掌握应用办公和财务软件操作，熟练财务报表的处理与分析，熟悉税收和财政政策，遵守财经纪律。","贵州省铜仁市碧江区"]
[{"$f":"SUBTOTAL(103,$F$4:F5)+1-1","v":2},"铜仁市国有资本运营有限责任公司","杨斯",15186003216,"专业技术","财务部工作员","会计学、审计学、财务管理","初级以上\n中级优先","本科及以上",1,"具有1-2年工作经验；具有初级会计师及以上职称","按照薪酬管理办法执行","全职","是","具有全面的财务专业知识、财务处理及财务管理经验，精通国家财税法律规范，具备优秀的职业判断能力；能够熟练掌握应用办公和财务软件操作，熟练财务报表的处理与分析，熟悉税收和财政政策，遵守财经纪律。","贵州省铜仁市碧江区"]
[{"$f":"SUBTOTAL(103,$F$4:F6)+1-1","v":3},"贵州省武陵融资担保有限公司","瞿锋",18685690365,"专业技术","业务部工作员","金融相关专业",null,"本科及以上",1,"具有2年以上银行、金融业从业经验","按照薪酬管理办法执行","全职","是","无","贵州省铜仁市碧江区"]
[{"$f":"SUBTOTAL(103,$F$4:F7)+1-1","v":4},"贵州省武陵融资担保有限公司","瞿锋",18685690365,"专业技术","风控部工作员","法律、金融相关专业",null,"本科及以上",1,"具有2年以上银行、金融业从业经验","按照薪酬管理办法执行","全职","是","无","贵州省铜仁市碧江区"]
[{"$f":"SUBTOTAL(103,$F$4:F8)+1-1","v":5},"贵州省铜仁市兴源物资贸易有限公司","罗广",14785537365,"专业技术","医疗器械检验部检验员","医学临床检验学及医疗相关专业",null,"本科及以上",1,"1.协助完成公司质量管理体系的建立和产品持续改进的质量工作；\n2.负责公司的原材料进货、生产过程以及成品检验等环节的日常检验工作；\n3.熟练使用示波器、万用表等各种医疗器械产品的检验仪表，熟悉行业规范；\n4.定期对检测仪器进行保养。","按照薪酬管理办法执行","全职","是","1.具有1年及以上工作经验   \n2.（1）从事过医疗器械产品检验、检测或调试工作者优先；（2）有一定知识基础者优先。\n3.工作积极主动服从管理，上进心强，工作愿度强烈，具有良好的团队精神和抗压能力。","贵州省铜仁市碧江区"]
[{"$f":"SUBTOTAL(103,$F$4:F9)+1-1","v":6},"贵州省铜仁市城市开发投资集团有限公司","崔蒙蒙","0856-5652096","其它","融资部工作人员","金融、经济、财务、管理等相关专业",null,"本科及以上",3,"1.35周岁及以下，熟练掌握融资流程、专项业务及相关法律法规；                                                                               \n2.具有较好的文字写作能力及口头表达能力；               \n3.具有良好的融资分析能力和判断能力；\n4.工作主动性强，执行力强，责任心强，具备良好的团队协作意识。                                           ","按照薪酬管理办法执行","全职","是","具有2年以上从事融资工作经验"]
[{"$f":"SUBTOTAL(103,$F$4:F10)+1-1","v":7},"贵州省铜仁市城市开发投资集团有限公司","崔蒙蒙","0856-5652096","其它","人力资源部工作人员","人力资源管理、劳动与社会保障等相关专业",null,"本科及以上",1,"1.35周岁及以下；                                                                            \n2.熟悉《公司法》《劳动法》《劳动合同法》等方面的法律法规；\n3.熟悉WPS软件操作；\n4.具备较强的写作能力，有国有企业人力资源方面工作经验者优先考虑；\n5.政治意识强，具备优秀的沟通力、理解力、观察力及组织协调力。                                                                                                                                                                    ","按照薪酬管理办法执行","全职","是","具有5年以上从事人力资源管理工作经验"]
[{"$f":"SUBTOTAL(103,$F$4:F11)+1-1","v":8},"铜仁市水务投资有限责任公司","崔蒙蒙","0856-5652096","专业技术","安装公司结构工程师","结构工程",null,"本科及以上",1,"1.35岁以下，特别优秀者可以放宽到40岁；                                                        \n2.结构工程专业，具备结构工程师资格证书；\n3.有相关工作设计经验以及项目管理经验；\n4.熟悉结构设计开发流程,懂得模具的设计知识；\n5.了解相关的新技术、新工艺，能够熟练使用AutoCAD软件、Inverntor,Pro/EUG和Solid works等三维辅助设计软件中的一种；\n6.工作主动积极有责任心，动手能力强，做事仔细有条理，逻辑思维能力强。                           ","按照薪酬管理办法执行","全职","是","具有2年以上相关工作经验"]
[{"$f":"SUBTOTAL(103,$F$4:F12)+1-1","v":9},"贵州铜人房地产开发有限责公司","崔蒙蒙","0856-5652096","其它","副总经理","专业不限",null,"大专及以上",1,"1.40周岁及以下，特别优秀者可以放宽到45岁；\n2.参与过5万方房地产开发项目全过程工作经历，具备国有企业房地产工作经历者优先。","按照薪酬管理办法执行","全职","是","具有5年以上大型房地产管理工作经历"]
[{"$f":"SUBTOTAL(103,$F$4:F13)+1-1","v":10},"贵州铜人房地产开发有限责公司","崔蒙蒙","0856-5652096","其它","销售总监","专业不限",null,"大专及以上",1,"1.40岁及以下，特别优秀者可以放宽到45岁；\n2.担任10万平方米以上项目3年以上主管岗位工作经验；\n3.精通房地产营销策划推广全过程，拥有独立制定、编写项目前期及营销执行策略方案的能力，熟悉商业地产运作者优先。","按照薪酬管理办法执行","全职","是","具有5年以上房地产营销经历。"]
[{"$f":"SUBTOTAL(103,$F$4:F14)+1-1","v":11},"铜仁市祥安物业管理服务有限公司","崔蒙蒙","0856-5652096","其它","副总经理","工商管理",null,"大专及以上",1,"1.40周岁及以下，特别优秀者可以放宽到45岁，持有《物业项目经理》证；\n2.熟知物管法，熟悉当地房地产和物业市场，并对物业管理、资产运营及招商有相应的工作经历； \n3.能够独立编写和审核《质量手册》和《工作程序》；\n4.具有较强的组织、沟通和协调能力；\n5.共产党员、预备党员或积极分子优先考虑。","按照薪酬管理办法执行","全职","是","具有8年及以上服务类管理工作经验，2年以上国有企事业单位工作经历"]
[{"$f":"SUBTOTAL(103,$F$4:F15)+1-1","v":12},"贵州梵源建筑工程有限公司","崔蒙蒙","0856-5652096","专业技术","工程技术部部长","土木工程","中级","本科及以上",1,"35周岁及以下，持有二级建造师（建筑工程）优先。","按照薪酬管理办法执行","全职","是","具有5年及以上从事土木工程管理岗位的工作经验"]
[{"$f":"SUBTOTAL(103,$F$4:F16)+1-1","v":13},"铜仁市能源投资有限公司","崔蒙蒙","0856-5652096","专业技术","燃气工程师","天然气类相关专业",null,"大专及以上",1,"1.20周岁及以上，40周岁及以下；\n2.具有天然气类相关中级以上职称优先；\n3.熟悉工程造价、工程量计算、现场管理等工作。","按照薪酬管理办法执行","全职","是","从事燃气类相关专业2-4个项目，5年以上工作经验；有从事长输管网经验者优先"]
[{"$f":"SUBTOTAL(103,$F$4:F17)+1-1","v":14},"铜仁市能源投资有限公司","崔蒙蒙","0856-5652096","专业技术","燃气\n工程师","油气储运专业、焊接技术、石油工程等相关专业",null,"大专及以上",4,"1.20周岁以上，40周岁以下；          \n2.具有天然气类相关中级以上职称优先；                                             \n3.具有8年以上从事长输管网建设工作经验者可放宽学历；                      \n4.熟悉天然气长输管道建设特点，熟悉天然气长输管道工程设计、施工及质量评定等相关规范和标准；                                   \n5.具有燃气产品大型生产企业工作经历着优先；\n6.从事相关专业8年及以上特别优秀人员可放宽学历。","按照薪酬管理办法执行","全职","是","拥有EPC管理及天然气长输管道项目建设经验，具有5年及以上从事长输管道建设工作经验，熟悉燃气管道设计标准，燃气行业规范"]
[{"$f":"SUBTOTAL(103,$F$4:F18)+1-1","v":15},"铜仁市能源投资有限公司","崔蒙蒙","0856-5652096","专业技术","安全\n工程师","燃气类专业",null,"大专及以上",1,"1.35周岁及以下；                                                                             \n2.具有安全工程师资格证；                                                                                                                     3.具有注册安全工程师者优先。","按照薪酬管理办法执行","全职","是","具有5年及以上相关行业从业经历者优先"]
[{"$f":"SUBTOTAL(103,$F$4:F19)+1-1","v":16},"铜仁城投泰利新能源投资有限公司","崔蒙蒙","0856-5652096","专业技术","工程技术部工作人员","建筑、测绘、地质、机电中级职称，工程造价初级以上职称","中级","本科及以上",1,"1.35周岁及以下；                                                                              \n2.具有良好的组织、协调、沟通能力及较强的写作能力，熟悉项目建设流程及相关法律法规，同岗位工作经验；\n3.工作细致认真，条理性强，责任心强，勇于承担挑战性的工作；\n4.具有开拓精神和团队精神；                                                                             \n5.熟练CAD、广联达等办公软件。","按照薪酬管理办法执行","全职","是","具有3年以上相关工作经验"]
[{"$f":"SUBTOTAL(103,$F$4:F20)+1-1","v":17},"铜仁市玉屏能源燃气公司","崔蒙蒙","0856-5652096","专业技术","安全工程师","化工类专业",null,"大专及以上",1,"1.20周岁以上，40周岁以下；                                                                   \n2.具有安全工程师资格证；                                                                       \n3.具有注册安全工程师者优先。","按照薪酬管理办法执行","全职","是","具有2年及以上化工相关工作经历者优先"]
[{"$f":"SUBTOTAL(103,$F$4:F21)+1-1","v":18},"铜仁市绿色出行新能源交通营运有限公司","崔蒙蒙","0856-5652096","专业技术","电气工程师","电气类专业",null,"本科及以上",3,"有新能源汽车，充电桩运营经验者优先。","按照薪酬管理办法执行","全职","是","具有1年及以上工作经验"]
[{"$f":"SUBTOTAL(103,$F$4:F22)+1-1","v":19},"贵州省铜仁市交通旅游开发投资集团有限公司","黎超",15608562422,"专业技术","投融资部工作人员","金融学类、财务会计类、财政金融学类",null,"本科及以上",2,"35岁及以下，熟悉各类办公软件，具备较强的写作能力、协调、组织、沟通能力强。","按照薪酬管理办法执行","全职","是","负责开拓和维护投融资渠道和模式，实施集团公司融资计划，建立融资项目库。","贵州省铜仁市碧江区"]
[{"$f":"SUBTOTAL(103,$F$4:F23)+1-1","v":20},null,"黎超",15608562422,"专业技术","综合部文员","中国语言文学类、新闻传播学类、工商管理类、公共管理类等相关专业",null,"本科及以上",2,"35岁及以下，熟悉各类办公软件，具备较强的写作能力、协调、组织、沟通能力强。","按照薪酬管理办法执行","全职","是","负责办公室各类公文起草、处理工作，包括会议纪要、通知、请示、报告等","贵州省铜仁市碧江区"]
[{"$f":"SUBTOTAL(103,$F$4:F24)+1-1","v":21},"贵州省铜仁市交通旅游开发投资集团有限公司","黎超",15608562422,"专业技术","桥梁设计助理","桥梁工程相关专业",null,"本科及以上",1,"35岁以下，能熟练运用相关设计绘图计算机软件（如midas、桥梁博士、桥梁大师等）","按照薪酬管理办法执行","全职","是","负责桥梁工程相关设计工作","贵州省铜仁市碧江区"]
[{"$f":"SUBTOTAL(103,$F$4:F25)+1-1","v":22},null,"黎超",15608562422,"专业技术","道路设计助理","道路工程相关专业",null,"本科及以上",1,"35岁及以下，能熟练掌握CAD、相关专业设计软件，熟练使用各种通用办公软件","按照薪酬管理办法执行","全职","是","负责道路工程相关设计工作","贵州省铜仁市碧江区"]
[{"$f":"SUBTOTAL(103,$F$4:F26)+1-1","v":23},null,"黎超",15608562422,"专业技术","工程部技术员","工程造价、道路与桥梁、土木工程相关专业",null,"本科及以上",3,"35岁及以下，熟悉工程施工、设计、监理、工程管理等工作内容","按照薪酬管理办法执行","全职","是","负责工程建设项目现场管理","贵州省铜仁市碧江区"]
[{"$f":"SUBTOTAL(103,$F$4:F27)+1-1","v":24},null,"黎超",15608562422,"专业技术","经营部工作人员","经济学、金融学、法律类、工程造价及土木工程相关专业",null,"本科及以上",1,"35岁及以下，熟悉房地产项目经营有关工作","按照薪酬管理办法执行","全职","是","负责公司旗下房地产项目、停车场项目市场化运营管理","贵州省铜仁市碧江区"]
[{"$f":"SUBTOTAL(103,$F$4:F28)+1-1","v":25},"贵州省铜仁市交通旅游开发投资集团有限公司","黎超",15608562422,"专业技术","财务计划部会计","财务会计类专业",null,"本科及以上",1,"35岁及以下，熟练掌握财务制度、会计制度和有关法规","按照薪酬管理办法执行","全职","是","负责财务核算、凭证审核、税务申报、费用分析、预决算等工作","贵州省铜仁市碧江区"]
[{"$f":"SUBTOTAL(103,$F$4:F29)+1-1","v":26},null,"黎超",15608562422,"专业技术","法务审计部工作人员","法律相关专业",null,"本科及以上",1,"35岁及以下，熟练掌握法务审计相关政策规定，具有法律专业相关资格证书优先","按照薪酬管理办法执行","全职","是","负责建立完善内部审计和合同审核工作，并负责合同的跟踪管理；负责采取有效措施预防和减少公司潜在法律及经济风险。","贵州省铜仁市碧江区"]
[{"$f":"SUBTOTAL(103,$F$4:F30)+1-1","v":27},"铜仁市梵净古邑文旅发展集团有限公司","张烨","0856—5260215",null,"融资人员","经济、金融工程、财务管理、统计学、会计相关专业",null,"本科及以上",5,null,"6000--8000","全职","是","1.具有3年及以上相关工作经验；  \n2.熟悉融资相关业务工作，责任心强，主动性强。","贵州省铜仁市碧江区"]
[{"$f":"SUBTOTAL(103,$F$4:F31)+1-1","v":28},{"$nulls":3},"专业技术","法务审计人员","法律相关专业、审计学、统计学、会计相关专业","会计中级职称；法律职业资格证书C证及以上","本科及以上",1,null,"6000--8000","全职","是","1.具备1年及以上机关、事业单位及国企法务、审计相关工作经验  \n2. 熟悉法务审计相关业务工作，责任心强，主动性强。","贵州省铜仁市碧江区"]
[{"$f":"SUBTOTAL(103,$F$4:F32)+1-1","v":29},{"$nulls":3},"专业技术","财务人员","财务、会计相关专业","会计中级职称","本科及以上",9,null,"6000--8000","全职","是","具有3年及以上相关工作经验 ","贵州省铜仁市碧江区、江口县"]
[{"$f":"SUBTOTAL(103,$F$4:F33)+1-1","v":30},{"$nulls":3},"专业技术","工程人员","土木工程类、工程管理、工程造价、测量、道路桥梁工程、环境工程等建筑类及相关专业",null,"本科及以上",6,null,"6000--8000","全职","是","具有2年以上同等岗位工作经验","贵州省铜仁市碧江区"]
[{"$f":"SUBTOTAL(103,$F$4:F34)+1-1","v":31},"铜仁市扶贫开发投资有限责任公司","曾诗好",18585959974,"专业技术","农业技术人员","农学相关专业",null,"大学专科及以上",1,"1.35周岁以下，硕士研究生及以上学历的可放宽到45周岁以下。\n2.具有3年及以上农业生产管理相关经验。\n3.具有丰富的农业生产知识技能。\n4.能吃苦耐劳,具备良好的团队合作精神。","按照《铜仁市扶贫开发投资有限责任公司薪酬管理制度》执行","全职","是","无","贵州省铜仁市"]
[{"$f":"SUBTOTAL(103,$F$4:F35)+1-1","v":32},"铜仁市扶贫开发投资有限责任公司","曾诗好",18585959974,"职业技能","市场营销主管","市场营销相关专业",null,"大学专科及以上",1,"1.35周岁以下，硕士研究生及以上学历的可放宽到45周岁以下。\n2.具有3年及以上市场推广和销售类相关经验；具有丰富的渠道资源者优先。\n3.能够拓展潜在客户资源，并对潜在客户进行关键信息收集，对目标市场做前期市场研判；能够独立完成接洽、谈判、协商并促成合作；具有较强的信息化、网络化和新媒体操作技能。\n4.有较强的信息敏锐度和信息挖掘、资源拓展整合、分析能力；性格开朗，具有感染力、说服力和专业形象，善于与客户建立良好的关系。","按照《铜仁市扶贫开发投资有限责任公司薪酬管理制度》执行","全职","是","无","贵州省铜仁市"]
[{"$f":"SUBTOTAL(103,$F$4:F36)+1-1","v":33},"铜仁市扶贫开发投资有限责任公司","曾诗好",18585959974,"专业技术","财务总监","会计学","中级职称及以上","大学专科及以上",1,"1.45周岁以下。\n2.具有5年及以上财务相关工作经验。\n3.熟悉使用财务软件。\n4.具有良好的学习能力、独立工作能力和财务分析能力，工作细致、责任感强、良好的沟通能力和团队精神。","按照《铜仁市扶贫开发投资有限责任公司薪酬管理制度》执行","全职","是","无","贵州省铜仁市"]
[{"$f":"SUBTOTAL(103,$F$4:F37)+1-1","v":34},"铜仁市财农信贷融资担保有限责任公司","唐文峰",18285164980,"其他（管理岗）","综合行政","文秘、行政管理相关专业",null,"本科及以上",1,"1.掌握常用公文的运用与写作，做好文字材料报送的审核把关。\n2.熟练撰写各种工作报告、总结和计划。\n3.具备良好的计划执行能力，能理解领导的意图，制定工作目标和可操作的行动计划,保证计划的高效、顺利实施。\n4.较强的社会交往能力，口语表达能力，服务能力。","4000--8000","全职","是","1.具有3年及以上办公室工作经验；   \n2.（1）具有较强的公文写作能力、能熟练地从事文书、秘书事务工作；（2）熟悉新闻与文秘专业基本理论与基本知识；\n3.工作积极主动，服从管理，上进心强，具有良好的团队精神和抗压能力。","贵州省铜仁市碧江区"]
[{"$f":"SUBTOTAL(103,$F$4:F38)+1-1","v":35},"铜仁市梵净山歌舞团有限公司","梁峰",18083519166,"管理岗","市场运营","不限",null,"大专及以上",1,"1.根据公司战略目标和经营管理目标，制定公司网络运营指标、年度计划，建立规范、高效的运营管理体系及监督机制并优化完善；  \n2.负责公司所有活动的营销，推广活动的创意，策划，活动方案的撰写和实施； 3.负责公司运营收入指标，并推动相关部门人员达成公司的运营收入目标；\n4.完成上级安排其他测试任务或其他管理工作。","面谈","全职","是","1.具有2年及以上市场营销管理经验  \n2. （1）具有良好的沟通、协调、策划能力。（2）有先进的经营理念。（3）有较强的管理能力。\n3.工作积极主动，服从管理，上进心强，测试职业意愿度强烈，具有良好的团队精神和抗压能力。","贵州省铜仁市碧江区"]
[{"$f":"SUBTOTAL(103,$F$4:F39)+1-1","v":36},"铜仁武陵山高新技术产业发展集团有限公司","曾凯丽",18585959488,"职能运营","产业投资与招商部","市场营销、企业管理、工商管理等相关专业",null,"本科及以上",3,"1.具有3年以上工作经验，从事过行业相关管理工作；                                                                                                                                             2.具备客户关系管理等相关知识，熟悉投资、招商行业相关知识及产业政策，掌握一定的品牌资源，具有产业园、电商园招商、运营管理工作经验优先；                                                                                         3.具备良好的组织协调能力、人际沟通能力、分析应变能力、决策能力、书面表达能力、领导能力及抗压能力；                                                                                                                    4.熟练操作Office、ppt等各类办公软件；                                                                                                                                                                              5.资源及能力较强者、条件特别优秀者可适当放宽要求。","7000-10000","全职","是","无","贵州省铜仁市高新区"]
[{"$f":"SUBTOTAL(103,$F$4:F40)+1-1","v":37},"铜仁武陵山高新技术产业发展集团有限公司","曾凯丽",18585959488,"营销类","产业投资与招商部","市场营销、企业管理、工商管理等相关专业",null,"本科及以上",3,"1.具有3年以上工作经验，从事过行业相关管理工作，有过成功项目运营经验优先，或者有过商业、文旅、康养、科技信息等运营工作经历；                                                                                                       2.熟悉商业招商、企划业务和运营流程，具有敏锐的商业触觉、优异的工作业绩；\n3.有较强的谈判沟通能力，并能善于应对各种变化，有责任心、事业心、能承受工作压力，在团队管理方面具有极强的领导技巧和才能；                                                                                                                                     4.有较强的人脉关系，在项目支持或新兴产业方面有落地实施条件可优先考虑，资源及能力较强者、条件特别优秀者可适当放宽要求。","7000-10000","全职","是","无","贵州省铜仁市高新区"]
[{"$f":"SUBTOTAL(103,$F$4:F41)+1-1","v":38},"铜仁市财信金融服务有限公司","刘冬如",15086289526,"金融财务类","融资财务顾问","金融、会计",null,"本科及以上",1,"金融、会计","薪资面谈","全职","是","无","贵州省铜仁市碧江区"]
[{"$f":"SUBTOTAL(103,$F$4:F42)+1-1","v":39},"铜仁市碧江区三江水路运输有限责任公司","谢文丽",15286737249,"专业技术","项目工程师","土木工程、建筑等相关专业",null,"本科及以上",1,"负责项目的工程管理、工程质量、进度计划的控制；负责施工现场的土建专业技术管理工作，参与本专业施工图纸、技术方案会审","8000-20000","全职","是","1.具有5年及以上工程项目经验；\n2. 具有工程师证照；\n3. 工作积极主动服从管理，上进心强，具有良好的团队精神和抗压能力。","贵州省铜仁市碧江区"]
[{"$f":"SUBTOTAL(103,$F$4:F43)+1-1","v":40},"铜仁市碧江区三江水路运输有限责任公司","谢文丽",15286737249,"专业技术","景区运营总监","旅游管理相关专业",null,"本科及以上",1,"1.负责公司景区项目的规划、招商、运营等工作，全程策划、实施、管理及控制，以达到公司的经营目标；\n2.制定并完善景区商业运营组织架构，理顺业务流程，制定并主导实施业务链各岗位作业流程和监督管理流程；\n3.负责招商、企划和运营团队建设；监督执行景区品牌战略、营销推广、大型活动策划与实施等；\n4.负责管理外部商业合作伙伴，建立客户档案，做好客户关系管理；定期调研国内旅游市场、分析景区经营数据，不断完善运营方案。","8000-20000","全职","是","1.具有5年以上景区运营经验；\n2.工作积极主动服从管理，上进心强，具有良好的团队精神和抗压能力。","贵州省铜仁市碧江区"]
[{"$f":"SUBTOTAL(103,$F$4:F44)+1-1","v":41},"铜仁市碧江区三江水路运输有限责任公司","谢文丽",15286737249,"专业技术","营销总监","市场营销相关专业",null,"本科及以上",1,"1.掌握先进的营销方法，对市场战略规划、市场开拓、市场管理、终端维护及品牌建设方面有深入研究与实践经验;\n2.具有敏锐的市场感知、把握市场动态和市场方向的能力，对市场信息有独到的分析判断能力。 ","8000-20000","全职","是","1.具有5年以上旅游工作经验或3年以上快消品营销经验；\n2.工作积极主动服从管理，上进心强，具有良好的团队精神和抗压能力。","贵州省铜仁市碧江区"]
[{"$f":"SUBTOTAL(103,$F$4:F45)+1-1","v":42},"铜仁市碧江区三江水路运输有限责任公司","谢文丽",15286737249,"专业技术","营销总监","市场营销相关专业",null,"本科及以上",1,"1.掌握先进的营销方法，对市场战略规划、市场开拓、市场管理、终端维护及品牌建设方面有深入研究与实践经验;\n2.具有敏锐的市场感知、把握市场动态和市场方向的能力，对市场信息有独到的分析判断能力。  ","8000-20000","全职","是","1.具有5年以上旅游工作经验或3年以上快消品营销经验；\n2.工作积极主动服从管理，上进心强，具有良好的团队精神和抗压能力。","贵州省铜仁市碧江区"]
[{"$f":"SUBTOTAL(103,$F$4:F46)+1-1","v":43},"贵州黔东武陵农业产业扶贫有限公司","罗世彤",18908554016,"专业技术","助理营销师、营销师或高级营销师","市场营销及相关专业",null,"本科及以上",10,"1.服从上级领导的管理，负责所属区域的市场拓展、营销策划、组织管理并带领区域销售人员完成公司下达的各项工作任务。\n2.做好进度排期和工作计划，组织区域营销活动。 \n3.具有指挥协调能力，能够布置、督导公司各种市场开发、推广、促销方案的实施工作。\n4.汇总各种区域报表，掌握竞争产品的动态，收集市场信息为上级领导提供决策依据。\n5.掌握客户情况，强化市场管理，特别对重点市场的重点客户要做到定期拜访处理好客情关系，并及时解决市场中的问题。\n6.完善售后服务工作，及时布置解决客户投诉等难度问题。","6000-12000","全职","是","1.工作有激情，性格外向，能驻扎一线工作；\n2.具备高度的责任心和良好的团队精神。 \n3.具有议定的销售基础；\n4.工作年限：1年及以上","贵州省铜仁市碧江区"]
[{"$f":"SUBTOTAL(103,$F$4:F47)+1-1","v":44},"贵州黔东武陵农业产业扶贫有限公司","罗世彤",18908554016,"专业技术","农艺师及相关类型","农业类及相关专业",null,"本科及以上",1,"1.负责基地日常工作，并归纳总结产品施肥后的效果，做好实验记录，形成报告；\n2.对作物病虫草害等情况进行预测预报，拟定解决方案，及时、有效地处理病虫害等突发情况；\n3.负责农业技术科研实验资料的建立并及时更新；\n4.负责做好实验设备，如计量器具等日常维护保养工作；\n5.对市场部、销售部人员进行专业技术培训指导。","5000-8000","全职","是","1.工作有激情，性格外向，能驻扎一线工作；\n2.有农业情怀，有创意梦想；\n3.具备高度的责任心和良好的团队精神。 \n4.具有良好的农业专业理论基础知识，并具有成功开发/测试经验；\n5.工作年限：2年及以上","贵州省铜仁市碧江区"]
[{"$f":"SUBTOTAL(103,$F$4:F48)+1-1","v":45},"贵州黔东武陵农业产业扶贫有限公司","罗世彤",18908554016,"专业技术","技术研发工程师","土壤学、微生物学、植物营养学、分析化学、合成生物学、环境科学等农业相关专业",null,"本科及以上",1,"1.从事新型农业相关产品研发，负责新项目技术研发、工艺开发、技术应用、技术推广工作；\n2.参与新项目的技术可行性论证；\n3.实施新开发项目的实施，监督、控制，促进新产品开发产品化；\n4.做好研发项目评审所需相关资料；\n5.负责研发结题报告撰写；\n6.掌握和跟踪国际、国内同类产品的技术发展趋势，提出新技术、新产品研发方向；\n7.完成上级领导临时交办的工作任务。","7000-10000","全职","是","1.有2年以上技术研发工作经验者优先；\n2.较强的独立分析问题和解决问题的能力；\n3.强烈的责任感和很好的团队合作精神，具备很强的自学能力，能够承受工作压力；\n4.工作有激情，性格外向，能驻扎一线工作。\n","贵州省铜仁市碧江区"]
[{"$f":"SUBTOTAL(103,$F$4:F49)+1-1","v":46},"贵州黔东武陵农业产业扶贫有限公司","罗世彤",18908554016,"专业技术","园艺师","平面设计、园林设计",null,"本科及以上",1,"1.负责各类活动的策划与组织实施，以及公众号的维护；\n2.组织指导撰写各种公关活动方案；\n3.据市场信息及行业动态，进行活动策划和执行；\n4.协助部门负责人对活动进行整体协调和把控；\n5.每月制定活动计划、成本控制及预算；\n6.根据业务需要制作各种宣传资料，塑造良好企业形象；\n7.根据公司市场战略和业务需要制定市场调查计划；\n8.负责活动现场的统筹、监督管理与执行。","4000-7000","全职","是","1.具备1年左右活动策划工作经验或大学期间有相关策划组织方面的实践经验；\n2.具备良好的沟通协调能力及写作能力，具备良好的分析能力，具备良好的审美以及图片处理能力，熟悉计算机办公操作及摄影摄像基本操作；\n3.性格外向，工作主动，责任心强，文采好。\n","贵州省铜仁市碧江区"]
[{"$f":"SUBTOTAL(103,$F$4:F50)+1-1","v":47},"铜仁市锦源劳务派遣有限公司","孟红英",15285447936,"专业技术","劳务派遣管理人员","人力资源管理及相关专业",null,"本科及以上",1,"1.负责项目整体运营开发和拓展有劳务派遣用工需要的企业和单位,建立、维护长期合作关系；\n2.负责建立健全人才库及招聘渠道开发，满足派遣用工需求；\n3.负责制作派遣用工方案，根据用人单位提出的要求,对实际工作环境、岗位进行了解,协商劳务派遣内容,并在合法用工的前提下修改、完善派遣方案；\n4.负责派遣团队管理。\n5.具备良好的执行能力、沟通协调能力、责任心强，考虑问题全面细致，性格开朗，有团队合作精神；\n6.完成上级安排其它管理工作。","5000-8000","全职","是","1.获取对应岗位高级职业证书；\n2.具有3年以上工作经验。","贵州省铜仁市碧江区"]
[{"$f":"SUBTOTAL(103,$F$4:F51)+1-1","v":48},"铜仁市纬源投资发展有限公司\n","梁丹",13035572022,"专业技术","人力资源管理人员","人力资源、企业管理专业\n",null,"大专及以上",2,"1.具有3年及以上人力资源、企业管理相关工作经验；\n 2.熟悉国家劳动法律法规和铜仁市相关劳动人事政策；\n3.熟悉人力资源日常管理工作流程，在人才的发现与引进、薪酬福利设计、绩效考核、岗位培训、员工职业生涯规划等方面有系统的了解和经验；\n4.有人力资源管理工作经验者优先。","员工薪酬福利待遇按照《铜仁市纬源投资发展有限公司薪酬管理制度》执行。","全职","是","无","贵州省铜仁市碧江区"]
[{"$f":"SUBTOTAL(103,$F$4:F52)+1-1","v":49},"铜仁市纬源投资发展有限公司\n","梁丹",13035572022,"专业技术","财务工作人员","会计相关专业",null,"大专及以上",3,"1.具有3年及以上相关工作经验并持有会计相关资格证书；\n 2.熟悉国家财务政策、会计法规，了解税务法规和相关税务政策，具备较系统的会计、财务专业知识；\n3.熟练掌握计算机使用技能，能熟练运用网络、办公软件和财务软件；\n4.具备良好的职业道德及敬业精神，工作认真、仔细、主动、勇于承担责任。 ","员工薪酬福利待遇按照《铜仁市纬源投资发展有限公司薪酬管理制度》执行。","全职","是","无","贵州省铜仁市碧江区"]
[{"$f":"SUBTOTAL(103,$F$4:F53)+1-1","v":50},"铜仁市纬源投资发展有限公司\n","梁丹",13035572022,"专业技术","工程技术人员","建筑工程管理相关专业",null,"大专及以上",2,"1.工作年限：具有三年及以上工程建设管理工作经验；\n2.有建筑行业相关技术职称和持有驾驶证者优先；\n3.具备良好的职业道德及敬业精神，责任心强，工作认真、积极主动。","员工薪酬福利待遇按照《铜仁市纬源投资发展有限公司薪酬管理制度》执行。","全职","是","无","贵州省铜仁市碧江区"]
[{"$f":"SUBTOTAL(103,$F$4:F54)+1-1","v":51},"铜仁市纬源投资发展有限公司\n","梁丹",13035572022,"专业技术","投融资业务工作人员","经济、金融等相关专业",null,"大专及以上",3,"1.具有三年及以上融资相关工作；2.熟悉财务、税收、金融有关政策法规；\n3.工作积极主动，服从安排、做事稳重、吃苦耐劳、学习主观意识强；\n4.具有一定的文字表述能力，持有驾驶证者优先。","员工薪酬福利待遇按照《铜仁市纬源投资发展有限公司薪酬管理制度》执行。","全职","是","无","贵州省铜仁市碧江区"]
[{"$f":"SUBTOTAL(103,$F$4:F55)+1-1","v":52},"铜仁市纬源投资发展有限公司\n","梁丹",13035572022,"专业技术","资产管理专员","经济管理、项目管理类专业",null,"大专及以上",2,"1.具有经济管理、项目管理类相关工作经验者优先；\n2.熟悉相关国有资产管理政策法律法规，了解土地和房产等不动产处置（重组）的相关制度和业务流程；\n3.能建立、完善公司的低效资产处置相关制度和运营流程；\n4.具备良好的职业道德及敬业精神，工作认真、仔细。","员工薪酬福利待遇按照《铜仁市纬源投资发展有限公司薪酬管理制度》执行。","全职","是","无","贵州省铜仁市碧江区"]
[{"$f":"SUBTOTAL(103,$F$4:F56)+1-1","v":53},"铜仁市纬源投资发展有限公司\n","梁丹",13035572022,"专业技术","法务工作人员","知识产权、经济法、行政诉讼法等法学相关专业",null,"大专及以上",3,"1.工作年限：具有3年及以上法务管理或法律工作经历；\n2.持有律师资格C证或法律职业资格证书，有律师职业律师经验优先；\n3.具有较强的语言表达能力，能准确地传达文件精神、工作报告；善于表达，能依法据实，论点明确，逻辑严谨，具有较强的说服力。","员工薪酬福利待遇按照《铜仁市纬源投资发展有限公司薪酬管理制度》执行。","全职","是","无","贵州省铜仁市碧江区"]
[{"$f":"SUBTOTAL(103,$F$4:F57)+1-1","v":54},"贵州省铜仁市碧水青山农业开发投资有限公司","吴丽娟",18722936578,"销售总监","市场营销","市场营销及相关专业",null,"本科及以上",2,"1.具有客户谈判技能及开发新客户技能;  \n2.具有较强的执行力，良好的沟通技巧与说服力；\n3.协助制定、营销产品方案与规范；\n4.完成上级安排其他市场销售任务或其他管理工作；\n5.能把握公司产品市场状况，了解同业竞争与消费有效需要。","年薪15-18万（实际工资可具体面谈）","全职","是","1.工作年限：2年及以上市场营销工作经历；\n2.工作能力：具有客户谈判技能及开发新客户技能；\n3.有一定软件知识基础者优先；\n4.年薪15-18万。\n5.其他要求： 工作积极主动服从管理，上进心强，测试职业意愿度强烈，具有良好的团队精神和抗压能力。","贵州省铜仁市碧江区"]
[{"$f":"SUBTOTAL(103,$F$4:F58)+1-1","v":55},"铜仁市国有资产投资有限公司","刘海华",5287139,"专业技术","融资部工作人员","金融相关专业",null,"本科及以上",1,"无","3000--5000","全职","是","1.2年及以上工作经验优先   \n2.具有良好的金融相关专业理论基础知识；\n3.工作积极主动服从管理，上进心强，具有良好的团队精神和抗压能力。","贵州省铜仁市碧江区"]
[{"$f":"SUBTOTAL(103,$F$4:F59)+1-1","v":56},"玉屏永昇国有资产投资管理有限公司","徐丽",18185607087,"专业技术","投资股权与资产经营部工作人员","金融学相关专业",null,"本科及以上",1,"1.负责日常投融资工作；\n2.熟悉投资业务相关法律法规；\n3.能撰写投资方案和项目分析报告编写、起草协议等；\n4.完成上级安排其他任务或其他管理工作。","4000-10000","全职","是","1.1年及以上投融资工作经验   \n2. （1）熟练掌握投融资流程和专项业务能力；（2）熟悉银行信贷审批流程，熟悉财务、税务、审计政策；\n3.工作积极主动服从管理，上进心强，具有良好的团队精神和抗压能力。","贵州省铜仁市玉屏县"]
[{"$f":"SUBTOTAL(103,$F$4:F60)+1-1","v":57},"玉屏永昇国有资产投资管理有限公司","徐丽",18185607087,"专业技术","财务计划部工作人员","会计相关专业",null,"本科及以上",1,"1.审核各项费用支出，安排结算和核算工作;\n2.会计凭证的录入、整理、归挡;\n3.制作会计报表，数据统计与上报;\n4.负责报销费用的审核、凭证的编制和登帐;           \n5.完成领导布置的其他工作。","4000-10000","全职","是","1. 具有1年以上相关工作经验，具有会计从业资格证书；\n2.具备财务的专业知识，熟悉财务法律法规、税法，熟悉结算报销等程序;\n3.能熟练使用专业的财务软件;\n4.工作责任心强、正直，有较强的团队合作精神与应变处理能力，良好的语言表达能力，擅于沟通。","贵州省铜仁市玉屏县"]
[{"$f":"SUBTOTAL(103,$F$4:F61)+1-1","v":58},"松桃苗族自治县松江水利投资有限公司","崔湘朝",18181224202,"专业技术"," 技术员及资料员","工程类及相关专业",null,"本科及以上",3,"1.专业要求：水利水电相关专业\n2.能熟练掌握电脑基本操作\n3.其他要求： 工作积极主动服从管理，上进心强，具有良好的团队精神；\n4.年龄35岁以下（1986年5月1日后出生）。","按公司薪酬\n规定","全职","是","无","贵州省松桃县"]
[{"$f":"SUBTOTAL(103,$F$4:F62)+1-1","v":59},"松桃七星土地开发有限责任公司","孙杨",15688049998,"综合管理","综合部","汉语言文学",null,"本科及以上",1,"1.年龄35岁以下（1986年5月1日后出生）；\n2.要求有文秘工作经验优先。","按公司薪酬\n规定","全职","是","1. 具有良好的文字功底，熟悉基本的公文写作，有一定软件知识。\n2.工作积极主动服从管理，上进心强，具有良好的团队精神和抗压能力。","贵州省松桃县"]
[{"$f":"SUBTOTAL(103,$F$4:F63)+1-1","v":60},"松桃扶贫开发投资（集团）有限公司","李元珍",13885620123,"专业技术","财务中心、投融资部、市场部","市场营销、金融、会计相关专业",null,"全日制本科及以上",3,"1.具有2年及以上工作经验；\n2.工作积极主动服从管理，上进心强。","3500-5000","全职","否","无","贵州省松桃县"]
["合计",{"$nulls":8},116]